bitfinex/quotes_SOLUSD_20240624
["timestamp","ask_amount","ask_price","bid_price","bid_amount"]
[1719252101345,6.543,127.95,127.84,30.55]
[1719252101551,6.543,127.95,127.85,20.0]
[1719252102239,0.34,127.94,127.84,7.8221]
[1719252102550,0.34,127.94,127.85,20.0]
[1719252103350,6.543,127.95,127.84,39.5551]
[1719252103524,6.543,127.95,127.85,8.1611]
[1719252103728,6.543,127.95,127.86,51.2505]
[1719252103927,6.543,127.95,127.87,20.0]
[1719252104127,6.543,127.95,127.88,19.5488]
[1719252104337,6.543,127.95,127.89,28.1587]
[1719252104539,21.9691,128.05,127.9,19.546]
[1719252104739,21.9691,128.05,127.91,7.8178]
[1719252104943,21.9691,128.05,127.93,7.8167]
[1719252105145,7.8105,128.04,127.89,47.7056]
[1719252105364,21.9691,128.05,127.89,20.34]
[1719252105365,36.13483796,128.05,127.89,20.34]
[1719252105545,28.01605933,128.05,127.92,7.8168]
[1719252105728,21.9691,128.05,127.94,23.43]
[1719252105929,21.9691,128.05,127.97,23.43]
[1719252106164,21.9691,128.05,127.98,20.0]
[1719252107036,21.9691,128.05,127.98,43.43]
[1719252107232,6.4602,128.05,127.99,42.9622]
[1719252107537,6.4602,128.05,128.0,20.0]
[1719252107739,6.4602,128.05,128.01,45.0]
[1719252109432,6.4602,128.05,128.0,45.0]
[1719252109633,6.4602,128.05,128.01,20.0]
[1719252109847,6.4602,128.05,128.02,45.0]
[1719252112246,6.4602,128.05,127.94,7.8159]
[1719252112446,15.0382,128.03,127.95,20.0]
[1719252112642,0.34,128.02,127.91,398.2175]
[1719252112857,0.34,128.02,127.93,19.5416]
[1719252112858,0.17,128.02,127.93,19.5416]
[1719252113046,0.17,128.02,127.93,50.7882]
[1719252113242,0.17,128.02,127.93,19.5416]
[1719252113448,0.34,128.02,127.92,7.8173]
[1719252114257,0.34,128.02,127.88,265.26531546]
[1719252114477,0.34,128.02,127.89,27.819]
[1719252114666,6.1926,128.01,127.89,20.0]
[1719252114978,6.1926,128.01,127.86,45.5882]
[1719252114979,0.34,128.0,127.86,19.5513]
[1719252115155,8.1526,128.0,127.86,50.8019]
[1719252115465,7.8131,127.99,127.86,42.9813]
[1719252115655,0.34,127.98,127.86,42.9813]
[1719252115847,0.17,127.97,127.86,42.9813]
[1719252116048,0.34,128.0,127.87,27.8199]
[1719252116563,0.34,128.0,127.87,51.2499]
[1719252116869,0.34,128.0,127.87,27.8199]
[1719252117268,22.8766,127.98,127.87,20.0]
[1719252117560,22.8766,127.98,127.85,390.4]
[1719252117561,0.34,127.97,127.86,20.0]
[1719252118552,0.34,127.97,127.85,23.43]
[1719252119152,0.34,127.97,127.85,31.2514]
[1719252119360,0.17,127.97,127.86,7.8208]
[1719252119664,22.8766,127.98,127.85,23.6]
[1719252119863,22.8766,127.98,127.86,20.0]
[1719252120057,7.8147,127.97,127.85,23.43]
[1719252120363,22.8766,127.98,127.86,20.0]
[1719252120700,7.8156,127.95,127.82,19.5578]
[1719252120867,6.8031,127.94,127.83,43.43]
[1719252121052,6.6331,127.94,127.83,51.2526]
[1719252121366,0.17,127.93,127.83,43.43]
[1719252121562,0.17,127.93,127.83,20.0]
[1719252122074,6.4631,127.94,127.88,7.8197]
[1719252122270,6.4631,127.94,127.84,7.8218]
[1719252122484,6.4631,127.94,127.85,20.0]
[1719252122661,6.4631,127.94,127.85,39.5528]
[1719252122864,6.4631,127.94,127.86,23.6]
[1719252123056,6.4631,127.94,127.87,51.42]
[1719252123262,6.4631,127.94,127.87,31.42]
[1719252123565,6.4631,127.94,127.88,20.0]
[1719252124369,6.4631,127.94,127.87,20.0]
[1719252124567,6.4631,127.94,127.8,69.6721]
[1719252124783,6.4631,127.94,127.85,7.8212]
[1719252124963,6.4631,127.94,127.86,20.0]
[1719252125365,6.4631,127.94,127.86,39.552]
[1719252125564,6.4631,127.94,127.87,7.8202]
[1719252125763,6.4631,127.94,127.86,27.3728]
[1719252125977,6.4631,127.94,127.87,27.8204]
[1719252126273,6.4631,127.94,127.89,23.43]
[1719252126472,6.4631,127.94,127.9,43.6]
[1719252126649,6.2565,127.98,127.93,7.8162]
[1719252126856,6.2565,128.02,127.94,43.6]
[1719252127053,6.2565,128.02,127.95,23.43]
[1719252127358,6.2565,128.02,127.96,20.0]
[1719252128373,6.2565,128.02,127.97,23.43]
[1719252128577,6.4857,128.07,127.99,31.2426]
[1719252128757,6.4857,128.07,128.0,20.0]
[1719252129647,6.4857,128.07,128.01,0.17]
[1719252129847,6.4857,128.07,128.01,20.17]
[1719252130052,6.4857,128.07,128.01,20.0]
[1719252130472,6.4857,128.07,128.0,20.0]
[1719252130673,6.4857,128.07,127.96,19.5363]
[1719252130977,6.4857,128.07,127.99,7.8127]
[1719252131159,6.4857,128.07,127.97,20.17]
[1719252131353,0.34,128.06,127.95,20.0]
[1719252131557,0.34,128.06,127.92,420.95]
[1719252131790,0.34,128.06,127.89,15.5765]
[1719252131995,14.3735,128.03,127.89,35.1242]
[1719252132159,7.9812,128.02,127.89,19.5477]
[1719252132461,0.17,128.01,127.88,282.53]
[1719252132658,0.17,128.01,127.88,302.0792]
[1719252132853,0.34,128.02,127.9,31.248]
[1719252133602,0.34,128.02,127.86,728.6603]
[1719252133603,7.8126,128.0,127.86,38.3708]
[1719252133808,0.34,127.99,127.87,20.0]
[1719252134088,0.34,127.99,127.87,27.8202]
[1719252134266,0.34,127.99,127.89,7.8191]
[1719252134472,0.34,128.0,127.9,20.0]
[1719252135059,0.34,128.0,127.86,30.55]
[1719252135060,0.17,128.0,127.92,7.8173]
[1719252135264,16.4003,128.01,127.92,23.43]
[1719252135465,6.5625,128.03,127.93,43.43]
[1719252135687,6.5625,128.03,127.95,42.9682]
[1719252135986,6.5625,128.03,127.96,43.43]
[1719252136372,6.5625,128.03,127.96,51.2447]
[1719252137665,6.5625,128.03,127.98,31.2436]
[1719252137874,6.5625,128.03,127.99,20.0]
[1719252138066,16.4003,128.06,127.99,51.2429]
[1719252138477,6.1284,128.07,128.02,7.8108]
[1719252138681,6.1284,128.07,128.02,31.2408]
[1719252138878,6.1284,128.07,128.03,20.0]
[1719252139090,15.7507,128.11,128.03,51.2405]
[1719252139384,15.7507,128.11,128.03,20.0]
[1719252139587,15.7507,128.11,128.02,20.0]
[1719252140171,15.7507,128.11,127.99,20.0]
[1719252140578,7.8069,128.1,127.99,20.0]
[1719252140788,0.17,128.1,127.97,20.0]
[1719252140974,0.34,128.1,127.97,20.0]
[1719252141689,6.0455,128.05,127.92,30.55]
[1719252141868,6.0455,128.05,127.91,286.4619]
[1719252141869,0.34,128.04,127.91,259.1]
[1719252142069,0.34,128.04,127.9,7.8184]
[1719252142499,0.34,128.04,127.9,31.2484]
[1719252142697,0.34,128.04,127.91,23.43]
[1719252142898,0.34,128.04,127.93,7.8166]
[1719252143109,0.34,128.04,127.92,7.8173]
[1719252143713,0.34,128.04,127.92,31.2473]
[1719252144086,0.34,128.04,127.93,20.0]
[1719252144406,0.34,128.04,127.9,30.55]
[1719252144407,7.8108,128.03,127.92,20.0]
[1719252144606,16.0821,128.01,127.88,50.7981]
[1719252144779,0.17,128.0,127.9,42.9761]
[1719252144985,0.34,128.0,127.9,19.5461]
[1719252145179,0.34,128.0,127.9,7.8184]
[1719252145601,0.34,128.0,127.9,23.43]
[1719252145806,0.34,128.0,127.89,27.3665]
[1719252146112,0.34,128.0,127.86,50.1013]
[1719252146414,13.8275,127.99,127.85,266.9215]
[1719252146709,8.1539,127.98,127.84,31.252]
[1719252147020,0.34,127.98,127.85,7.8213]
[1719252147186,0.34,127.98,127.85,27.3755]
[1719252147387,0.34,127.98,127.85,19.5539]
[1719252147689,8.1541,127.98,127.84,31.2521]
[1719252148079,0.34,127.98,127.85,31.2516]
[1719252148328,8.1538,127.98,127.84,19.5553]
[1719252148493,8.1538,127.98,127.83,13.76059271]
[1719252148494,8.1539,127.98,127.83,13.76059271]
[1719252148810,7.8145,127.97,127.84,43.43]
[1719252149019,0.34,127.96,127.84,43.43]
[1719252149321,0.34,127.96,127.84,51.2521]
[1719252149486,0.34,127.96,127.84,51.252]
[1719252149816,0.34,127.95,127.84,43.43]
[1719252150021,8.1546,127.97,127.84,43.43]
[1719252150225,6.434,127.93,127.8,289.65]
[1719252150519,16.4475,127.92,127.78,30.55]
[1719252150827,16.4475,127.92,127.82,27.3811]
[1719252151038,0.17,127.91,127.83,7.8223]
[1719252151236,6.434,127.93,127.85,23.43]
[1719252151512,6.434,127.93,127.86,19.5514]
[1719252151912,16.1956,127.97,127.88,19.5493]
[1719252152103,16.1956,127.97,127.89,20.0]
[1719252152311,16.1956,127.97,127.89,27.8192]
[1719252152506,16.1956,127.97,127.89,20.0]
[1719252153217,6.4666,127.98,127.9,23.77]
[1719252153409,6.4666,127.98,127.91,20.0]
[1719252153914,6.4666,127.98,127.9,20.0]
[1719252155113,6.4666,127.98,127.9,7.8183]
[1719252155310,6.4666,127.98,127.91,20.17]
[1719252155720,6.4666,127.98,127.91,51.4177]
[1719252155916,6.4666,127.98,127.92,42.9731]
[1719252156119,6.4666,127.98,127.93,20.0]
[1719252156800,6.4666,127.98,127.91,20.0]
[1719252157496,6.4666,127.98,127.92,7.8173]
[1719252157699,6.4666,127.98,127.93,20.0]
[1719252158111,6.4666,127.98,127.88,30.55]
[1719252158322,6.4666,127.98,127.89,20.0]
[1719252159001,0.34,127.97,127.88,30.55]
[1719252159207,6.4666,127.98,127.89,27.3665]
[1719252159408,0.34,127.97,127.89,27.3671]
[1719252159717,0.34,127.97,127.89,19.5479]
[1719252159923,0.17,127.97,127.89,50.797]
[1719252160125,6.4666,127.98,127.89,50.797]
[1719252160630,6.4666,127.98,127.91,27.3627]
[1719252160814,6.4666,127.98,127.92,20.0]
[1719252161407,6.4666,127.98,127.91,51.2474]
[1719252161812,6.4666,127.98,127.92,7.8169]
[1719252162016,6.4666,127.98,127.93,43.43]
[1719252162258,16.2868,128.02,127.95,23.43]
[1719252162430,16.2868,128.02,127.95,31.245]
[1719252162599,6.0077,128.03,127.96,51.4148]
[1719252162800,6.0077,128.03,127.97,31.2442]
[1719252163100,6.0077,128.03,127.98,20.0]
[1719252163702,6.0077,128.03,127.98,27.8136]
[1719252163895,6.0077,128.03,127.99,31.243]
[1719252164109,6.0077,128.03,128.0,20.0]
[1719252165502,6.0077,128.03,127.97,20.0]
[1719252165832,6.0077,128.03,127.93,39.03529122]
[1719252165833,6.0077,128.03,127.96,20.0]
[1719252166013,6.0077,128.03,127.94,20.0]
[1719252166213,6.0077,128.03,127.91,259.1]
[1719252166519,0.34,128.02,127.91,23.43]
[1719252167234,6.0077,128.03,127.93,31.2466]
[1719252167606,0.34,128.02,127.92,42.9723]
[1719252168100,0.34,128.02,127.92,50.7896]
[1719252168303,0.34,128.02,127.93,27.8167]
[1719252168508,0.34,128.02,127.93,51.2467]
[1719252168718,0.34,128.02,127.93,43.43]
[1719252168910,0.34,128.02,127.93,27.8167]
[1719252169138,0.34,128.02,127.93,20.0]
[1719252170044,6.0077,128.03,127.97,31.2441]
[1719252170216,6.0077,128.03,127.98,20.0]
[1719252171233,6.0077,128.03,127.93,50.0905]
[1719252171409,0.34,128.02,127.94,20.0]
[1719252171934,0.34,128.02,127.94,7.8161]
[1719252172111,6.0077,128.03,127.95,27.8154]
[1719252172303,0.17,128.02,127.95,20.0]
[1719252172507,0.34,128.02,127.95,20.0]
[1719252172722,0.34,128.02,127.91,19.5444]
[1719252172921,0.34,128.02,127.89,6.19506392]
[1719252173104,0.34,128.02,127.88,69.40242874]
[1719252173105,0.34,128.02,127.88,31.91529122]
[1719252173309,8.1514,128.02,127.88,31.2498]
[1719252173526,8.1512,128.02,127.89,7.819]
[1719252173838,8.1512,128.02,127.87,19.5509]
[1719252173839,6.6336,127.99,127.87,19.5509]
[1719252173999,6.6336,127.99,127.86,259.1]
[1719252174000,0.34,127.98,127.88,20.0]
[1719252174208,0.34,127.98,127.87,20.0]
[1719252174424,0.34,127.98,127.87,27.8203]
[1719252175127,0.34,127.98,127.88,7.8195]
[1719252175337,6.6336,127.99,127.89,31.4186]
[1719252175508,6.6336,127.99,127.9,19.546]
[1719252175703,6.6336,127.99,127.91,20.0]
[1719252175906,6.6336,127.99,127.91,43.43]
[1719252176322,6.6336,127.99,127.91,51.2477]
[1719252176769,6.6336,127.99,127.92,23.43]
[1719252176939,6.6336,127.99,127.93,20.0]
[1719252177148,6.6336,127.99,127.93,51.2467]
[1719252177538,6.6336,127.99,127.95,31.2455]
[1719252177763,6.124,128.04,127.96,51.2448]
[1719252178050,6.124,128.04,127.98,42.9638]
[1719252178216,6.124,128.04,128.0,7.8119]
[1719252178414,6.124,128.04,128.01,20.0]
[1719252178917,6.124,128.04,127.99,20.0]
[1719252179316,6.124,128.04,127.97,20.0]
[1719252179529,6.124,128.04,127.97,7.8142]
[1719252179834,6.124,128.04,127.98,20.0]
[1719252180529,6.124,128.04,127.95,20.0]
[1719252180723,6.124,128.04,127.94,20.0]
[1719252181125,6.124,128.04,127.94,27.8161]
[1719252181334,0.34,128.03,127.94,20.0]
[1719252181737,0.17,128.03,127.94,51.246]
[1719252182076,6.124,128.04,127.94,51.246]
[1719252182227,6.124,128.04,127.96,23.43]
[1719252182422,6.124,128.04,127.98,23.43]
[1719252182651,6.124,128.04,128.01,23.43]
[1719252182943,6.4183,128.09,127.98,23.43]
[1719252183120,6.4183,128.09,127.97,20.0]
[1719252183843,0.17,128.08,128.0,31.2422]
[1719252184021,6.4183,128.09,128.0,31.2422]
[1719252184341,6.4183,128.09,128.01,43.6]
[1719252185332,0.17,128.08,128.01,20.0]
[1719252185532,0.34,128.08,127.99,20.0]
[1719252185836,0.34,128.08,127.99,27.8129]
[1719252186042,6.4183,128.09,128.01,7.8117]
[1719252186234,6.4183,128.09,128.0,23.43]
[1719252186420,6.4183,128.09,128.01,20.0]
[1719252186732,0.17,128.08,127.94,19.5392]
[1719252186938,7.8098,128.05,127.92,8.48529122]
[1719252187137,0.17,128.08,127.92,8.48529122]
[1719252187138,0.17,128.04,127.92,52.94970405]
[1719252187317,6.1317,128.04,127.92,62.46529122]
[1719252187527,16.0183,128.02,127.92,62.46529122]
[1719252187718,0.34,128.01,127.92,53.98]
[1719252188121,0.34,128.01,127.92,23.43]
[1719252188433,0.34,128.01,127.89,23.43]
[1719252188638,0.34,128.01,127.9,20.0]
[1719252188935,0.34,128.01,127.9,43.43]
[1719252189117,0.34,128.01,127.9,50.7943]
[1719252189324,0.34,128.01,127.9,42.9759]
[1719252189518,0.34,128.01,127.91,23.43]
[1719252189726,0.34,128.01,127.88,42.06833752]
[1719252190761,16.0183,128.02,127.9,23.43]
[1719252191255,16.0183,128.02,127.91,23.6]
[1719252191412,16.0183,128.02,127.92,20.0]
[1719252192033,0.34,128.01,127.92,20.0]
[1719252193424,16.0183,128.02,127.92,62.9728]
[1719252193619,16.0183,128.02,127.94,23.43]
[1719252194537,16.0183,128.02,127.92,20.0]
[1719252194928,0.17,128.01,127.92,20.0]
[1719252195125,0.34,128.01,127.9,27.8186]
[1719252195332,0.34,128.01,127.91,0.17]
[1719252195543,0.34,128.01,127.91,31.4179]
[1719252195743,0.17,128.01,127.92,51.2471]
[1719252196059,16.0183,128.02,127.92,43.43]
[1719252196339,0.34,128.01,127.92,43.43]
[1719252197729,16.0183,128.02,127.94,23.43]
[1719252198221,16.0183,128.02,127.95,20.0]
[1719252198423,16.0183,128.02,127.91,27.7024]
[1719252198727,0.17,128.01,127.92,0.17]
[1719252198930,0.17,128.01,127.92,43.43]
[1719252199251,0.34,128.01,127.92,43.43]
[1719252199624,0.34,128.01,127.89,39.03529122]
[1719252199851,0.34,128.01,127.9,20.0]
[1719252200157,0.34,128.01,127.89,23.43]
[1719252200642,6.3788,128.0,127.89,50.7971]
[1719252200949,0.34,127.99,127.89,23.43]
[1719252201330,0.34,127.99,127.9,51.2483]
[1719252201525,0.34,127.99,127.9,43.43]
[1719252201720,0.34,127.99,127.9,51.2485]
[1719252201929,6.3788,128.0,127.92,23.43]
[1719252202221,0.17,127.99,127.9,43.43]
[1719252202439,0.34,127.99,127.9,43.43]
[1719252202942,0.34,127.99,127.88,10.81903752]
[1719252203247,0.34,127.99,127.86,719.67866597]
[1719252203248,0.34,127.99,127.86,730.8521]
[1719252203445,8.1532,127.99,127.87,20.0]
[1719252203748,13.8178,127.98,127.86,649.5]
[1719252203965,15.366,127.96,127.86,649.5]
[1719252204150,0.34,127.95,127.86,649.5]
[1719252204343,0.34,127.95,127.84,63.11810863]
[1719252204962,0.34,127.95,127.84,70.94030863]
[1719252205143,0.34,127.95,127.85,7.8216]
[1719252205445,0.34,127.95,127.86,20.0]
[1719252205748,0.34,127.95,127.85,20.0]
[1719252205948,6.4115,127.94,127.85,20.0]
[1719252206255,0.34,127.93,127.82,39.23104539]
[1719252206463,0.34,127.93,127.84,39.68810863]
[1719252207043,0.34,127.93,127.81,41.36903752]
[1719252207269,16.5925,127.89,127.81,30.55]
[1719252207424,0.34,127.88,127.81,30.55]
[1719252207859,6.4115,127.87,127.78,39.33490891]
[1719252208053,0.34,127.86,127.78,39.33490891]
[1719252208253,0.34,127.86,127.78,77.71030891]
[1719252208464,0.34,127.86,127.79,20.0]
[1719252208849,6.4115,127.87,127.8,7.8241]
[1719252209057,6.4115,127.87,127.81,27.824]
[1719252209343,6.4115,127.87,127.81,20.0]
[1719252209556,6.4115,127.87,127.81,43.43]
[1719252210234,6.4115,127.87,127.81,20.0]
[1719252210446,6.4115,127.87,127.8,20.0]
[1719252210657,6.4115,127.87,127.81,0.34]
[1719252210852,6.4115,127.87,127.81,20.0]
[1719252211157,6.4115,127.87,127.81,43.43]
[1719252211465,21.9044,127.97,127.83,50.8093]
[1719252211639,21.9044,127.97,127.84,27.8222]
[1719252211848,21.9044,127.97,127.84,20.0]
[1719252212364,21.9044,127.97,127.84,43.43]
[1719252212652,21.9044,127.97,127.85,31.4212]
[1719252212856,21.9044,127.97,127.86,20.0]
[1719252213246,21.9044,127.97,127.86,43.43]
[1719252213650,0.17,127.96,127.86,43.43]
[1719252213847,0.34,127.96,127.86,43.43]
[1719252214450,0.34,127.96,127.86,20.0]
[1719252214637,0.34,127.96,127.84,20.0]
[1719252214843,6.3612,127.93,127.83,20.0]
[1719252215057,6.3612,127.93,127.79,5.97451261]
[1719252215058,0.34,127.92,127.82,20.0]
[1719252215248,0.34,127.92,127.8,27.8245]
[1719252215568,0.34,127.92,127.83,23.43]
[1719252215764,0.34,127.92,127.84,20.0]
[1719252216669,0.34,127.92,127.84,51.2518]
[1719252217173,0.17,127.92,127.85,31.2516]
[1719252217348,6.3612,127.93,127.86,20.0]
[1719252218078,6.3612,127.93,127.85,43.43]
[1719252219849,6.3612,127.93,127.85,20.0]
[1719252220049,0.34,127.92,127.85,20.0]
[1719252220560,0.34,127.92,127.84,20.0]
[1719252220965,0.34,127.92,127.8,23.43]
[1719252220966,8.1576,127.92,127.8,23.43]
[1719252221272,15.9555,127.91,127.8,23.43]
[1719252221461,0.34,127.9,127.81,20.0]
[1719252222571,0.34,127.9,127.8,20.0]
[1719252222867,0.34,127.9,127.81,7.824]
[1719252223168,0.34,127.9,127.82,20.0]
[1719252223543,15.9555,127.91,127.82,43.43]
[1719252223749,15.9555,127.91,127.8,19.5617]
[1719252223750,6.6036,127.97,127.9,23.43]
[1719252223972,6.6036,127.97,127.9,31.2485]
[1719252224144,6.6036,127.97,127.91,43.6]
[1719252224363,6.6036,127.97,127.91,43.43]
[1719252224756,6.6036,127.97,127.91,20.0]
[1719252225054,6.6036,127.97,127.92,19.5419]
[1719252225258,6.6036,128.01,127.93,20.0]
[1719252225459,6.6036,128.01,127.92,0.17]
[1719252225653,6.6036,128.01,127.92,23.77]
[1719252225853,6.6036,128.01,127.93,70.788]
[1719252226048,6.6036,128.01,127.93,50.788]
[1719252226270,6.6036,128.01,127.94,20.0]
[1719252226573,6.6036,128.01,127.94,43.43]
[1719252227170,6.6036,128.01,127.94,20.0]
[1719252227366,6.6036,128.01,127.92,43.43]
[1719252227681,6.6036,128.01,127.92,51.2469]
[1719252227682,0.17,128.0,127.92,51.2469]
[1719252227861,0.34,128.0,127.92,43.43]
[1719252228560,0.34,128.0,127.92,20.0]
[1719252229364,0.34,128.0,127.91,20.0]
[1719252229755,0.34,128.0,127.88,51.2497]
[1719252229970,0.34,128.0,127.9,23.43]
[1719252230276,0.34,128.0,127.9,31.2481]
[1719252230581,0.34,128.0,127.91,50.792]
[1719252230868,0.34,128.0,127.91,42.9742]
[1719252231064,0.34,128.0,127.91,50.7921]
[1719252231453,0.34,128.0,127.92,20.0]
[1719252232160,6.6036,128.01,127.93,23.43]
[1719252232360,6.6036,128.01,127.94,43.43]
[1719252232862,6.6036,128.01,127.94,51.246]
[1719252233867,6.6036,128.01,127.96,23.43]
[1719252234280,6.6036,128.01,127.98,7.8135]
[1719252234488,6.6036,128.01,127.97,70.779]
[1719252234855,6.6036,128.01,127.98,31.2436]
[1719252235057,6.6036,128.01,127.99,20.0]
[1719252235556,6.5084,128.05,127.99,62.9624]
[1719252235773,6.5084,128.05,127.99,43.43]
[1719252236483,6.5084,128.05,127.99,20.0]
[1719252236661,6.5084,128.05,127.98,20.0]
[1719252237491,6.5084,128.05,127.97,43.43]
[1719252237977,0.34,128.04,127.97,43.43]
[1719252238372,0.17,128.04,127.97,43.43]
[1719252239967,6.5084,128.05,127.99,43.43]
[1719252240167,6.5084,128.05,127.99,51.243]
[1719252240363,6.5084,128.05,128.01,31.2414]
[1719252240560,6.102,128.09,128.02,43.43]
[1719252240757,6.102,128.09,128.02,23.43]
[1719252240964,6.102,128.09,128.04,31.2395]
[1719252241273,15.6208,128.12,128.05,19.5233]
[1719252241587,15.6208,128.12,128.03,20.0]
[1719252242369,15.6208,128.12,128.03,43.43]
[1719252242781,0.17,128.11,128.03,43.43]
[1719252243780,15.6208,128.12,128.03,43.43]
[1719252244077,6.2429,128.13,128.09,31.2368]
[1719252244279,6.2429,128.13,128.08,23.43]
[1719252244774,6.0545,128.17,128.09,20.0]
[1719252244975,6.0545,128.17,128.05,50.073]
[1719252245286,6.0545,128.17,128.1,23.43]
[1719252245669,6.0545,128.17,128.07,7.8078]
[1719252245863,6.0545,128.17,128.08,20.17]
[1719252246463,6.0545,128.17,128.08,43.43]
[1719252246666,6.0545,128.17,128.09,23.77]
[1719252246888,6.0545,128.17,128.1,43.43]
[1719252247067,6.0545,128.17,128.12,50.7476]
[1719252247269,15.3547,128.2,128.14,31.2339]
[1719252247469,6.6482,128.26,128.18,7.8014]
[1719252247693,6.6482,128.26,128.19,7.9707]
[1719252247969,6.6482,128.26,128.16,30.55]
[1719252248276,30.4487,128.37,128.22,7.799]
[1719252248482,22.6585,128.37,128.23,20.0]
[1719252248786,28.6588037,128.37,128.23,20.0]
[1719252248999,36.4488037,128.37,128.23,20.0]
[1719252249293,36.4492037,128.37,128.23,20.0]
[1719252249495,36.4489037,128.37,128.23,20.0]
[1719252250083,6.3494,128.35,128.23,20.0]
[1719252250290,6.3494,128.33,128.21,20.0]
[1719252250678,0.17,128.32,128.21,20.0]
[1719252251488,0.17,128.32,128.16,259.1]
[1719252251489,6.1346,128.3,128.16,259.1]
[1719252251682,6.1346,128.3,128.14,429.4172]
[1719252251683,0.17,128.29,128.14,429.4172]
[1719252251885,0.34,128.29,128.17,19.5044]
[1719252252366,0.34,128.29,128.15,7.8032]
[1719252252769,0.34,128.29,128.14,409.9092]
[1719252253001,29.4817,128.33,128.12,308.27373752]
[1719252253002,6.2554,128.28,128.12,308.27373752]
[1719252253177,15.0729,128.26,128.12,277.72373752]
[1719252253367,6.4351,128.24,128.12,278.6121]
[1719252253566,6.4351,128.24,128.17,7.8016]
[1719252253767,6.4351,128.24,128.16,19.5056]
[1719252254993,6.4351,128.24,128.17,20.0]
[1719252255199,6.4351,128.24,128.18,19.5025]
[1719252255377,6.4351,128.24,128.19,20.34]
[1719252255576,21.6153,128.35,128.2,23.43]
[1719252255777,21.6153,128.35,128.23,7.7983]
[1719252255994,21.6153,128.35,128.24,20.0]
[1719252256184,21.6153,128.35,128.22,7.799]
[1719252256374,21.6153,128.35,128.23,20.17]
[1719252256787,21.6153,128.35,128.23,27.9684]
[1719252257074,21.6153,128.35,128.23,47.4638]
[1719252257476,21.6153,128.35,128.23,39.6655]
[1719252257688,21.6153,128.35,128.23,63.0955]
[1719252257880,21.6153,128.35,128.23,20.0]
[1719252258082,21.6153,128.35,128.23,43.43]
[1719252258484,0.34,128.34,128.23,20.0]
[1719252258889,0.34,128.34,128.19,30.55]
[1719252259085,7.793,128.32,128.18,19.503]
[1719252259287,0.34,128.31,128.19,20.0]
[1719252259503,15.0197,128.29,128.18,20.0]
[1719252259685,0.34,128.28,128.18,20.0]
[1719252260005,0.34,128.28,128.18,23.43]
[1719252260296,15.0197,128.29,128.21,31.2293]
[1719252260501,15.0197,128.29,128.22,20.0]